bitfinex/quotes_SOLUSD_20241105
["timestamp","ask_amount","ask_price","bid_price","bid_amount"]
[1730816697617,22.59790924,165.02,164.99,21.2134]
[1730816697805,22.59790924,165.03,164.99,21.2134]
[1730816698006,4.2403,165.09,164.99,21.2134]
[1730816698201,22.59790924,165.03,164.99,21.2134]
[1730816699118,22.59790924,165.03,164.99,36.0627]
[1730816699906,22.59790924,165.02,164.99,36.0627]
[1730816700308,22.59790924,165.0,164.99,10.6067]
[1730816700513,22.59790924,165.03,164.99,14.8493]
[1730816700718,22.59790924,165.01,164.99,14.8493]
[1730816700926,22.59790924,165.02,164.99,10.6067]
[1730816701306,20.0,165.04,164.99,10.6067]
[1730816701507,22.59790924,165.02,164.99,10.6067]
[1730816702036,22.59790924,165.03,164.99,10.6067]
[1730816702337,22.59790924,165.01,164.99,10.6067]
[1730816703134,22.59790924,165.0,164.96,14.852]
[1730816703329,22.59790924,164.99,164.96,14.852]
[1730816703634,22.59790924,165.0,164.96,14.852]
[1730816704936,22.59790924,164.97,164.92,43.81970924]
[1730816705118,22.59790924,164.95,164.93,4.2442]
[1730816705324,16.289,164.98,164.94,22.59790924]
[1730816705648,22.59790924,164.97,164.93,14.8547]
[1730816705935,22.59790924,164.96,164.93,14.8547]
[1730816706108,22.59790924,164.98,164.93,14.8547]
[1730816706313,22.59790924,164.97,164.93,14.8547]
[1730816706938,22.59790924,164.98,164.93,14.8547]
[1730816707140,22.59790924,164.97,164.93,14.8547]
[1730816707430,22.59790924,164.96,164.93,10.6105]
[1730816708436,29.05110924,164.98,164.93,14.8547]
[1730816708617,22.59790924,164.94,164.93,14.8547]
[1730816708819,6.4532,164.98,164.9,14.8571]
[1730816708820,22.59790924,164.95,164.9,14.8571]
[1730816709130,22.59790924,164.96,164.9,37.45500924]
[1730816709313,10.6961,164.98,164.91,14.13648301]
[1730816709314,14.13648301,164.97,164.91,14.13648301]
[1730816709513,6.4532,164.98,164.9,14.8571]
[1730816709514,14.13648301,164.96,164.9,14.8571]
[1730816709713,14.13648301,164.96,164.9,28.99358301]
[1730816709932,14.13648301,164.97,164.91,14.13648301]
[1730816710619,14.13648301,164.97,164.92,4.2444]
[1730816710818,14.13648301,164.96,164.92,4.2444]
[1730816711134,29.50668301,164.95,164.9,14.8573]
[1730816711352,20.58968301,164.98,164.9,14.8573]
[1730816711550,15.3702,164.99,164.94,14.13648301]
[1730816712038,29.50668301,164.99,164.93,14.13648301]
[1730816712428,29.50668301,164.99,164.94,4.2439]
[1730816712630,14.13648301,164.98,164.94,4.2439]
[1730816713038,14.13648301,164.98,164.92,14.13648301]
[1730816713039,14.13648301,164.97,164.93,4.2441]
[1730816713246,14.13648301,164.96,164.93,4.2441]
[1730816713543,14.13648301,164.97,164.93,4.2441]
[1730816714042,14.13648301,164.97,164.94,0.1]
[1730816714459,14.13648301,165.0,164.95,0.2]
[1730816714749,14.13648301,164.99,164.96,0.1]
[1730816714947,14.13648301,164.98,164.95,4.4435]
[1730816715251,14.13648301,164.99,164.95,4.4435]
[1730816715432,14.13648301,164.99,164.96,0.1]
[1730816715842,14.13648301,164.99,164.95,4.4435]
[1730816716022,14.13648301,164.99,164.96,0.1]
[1730816716522,14.13648301,164.98,164.95,4.3435]
[1730816716718,14.13648301,164.99,164.95,4.3435]
[1730816716918,14.13648301,164.97,164.94,0.1]
[1730816717751,14.13648301,164.97,164.93,14.9544]
[1730816717752,14.13648301,164.95,164.93,10.7105]
[1730816718350,14.13648301,164.94,164.87,4.6646821]
[1730816718541,14.13648301,164.91,164.87,4.6646821]
[1730816718726,14.13648301,164.91,164.87,4.5646821]
[1730816718928,14.13648301,164.89,164.87,0.3191821]
[1730816719950,14.13648301,164.88,164.87,0.3191821]
[1730816720257,48.39845602,164.88,164.87,0.3191821]
[1730816720556,48.52394602,164.88,164.87,0.3191821]
[1730816720752,48.64943602,164.88,164.87,0.3191821]
[1730816720928,56.89067301,164.88,164.87,0.3191821]
[1730816721125,36.89067301,164.88,164.87,0.3191821]
[1730816721321,36.76518301,164.88,164.87,0.3191821]
[1730816722129,41.01068301,164.88,164.87,0.3191821]
[1730816722328,41.26166301,164.88,164.87,0.3191821]
[1730816722550,61.26166301,164.88,164.87,0.3191821]
[1730816722728,75.39814602,164.88,164.87,0.3191821]
[1730816723043,75.52363602,164.88,164.87,0.3191821]
[1730816723236,0.12549,164.85,164.79,0.3191821]
[1730816723455,14.13648301,164.8,164.79,0.3191821]
[1730816723634,14.13648301,164.82,164.79,0.3191821]
[1730816724133,14.13648301,164.81,164.79,0.3191821]
[1730816724746,14.13648301,164.82,164.79,0.3191821]
[1730816724934,14.13648301,164.81,164.79,0.3191821]
[1730816725259,4.2466,164.84,164.79,0.3191821]
[1730816725260,14.13648301,164.8,164.79,0.3191821]
[1730816726950,75.44663602,164.8,164.79,0.3191821]
[1730816727455,99.22352002,164.8,164.79,0.3191821]
[1730816727640,114.153354,164.79,164.71,0.3191821]
[1730816727845,14.13648301,164.72,164.71,0.3191821]
[1730816728355,44.153354,164.79,164.71,0.3191821]
[1730816728356,14.13648301,164.73,164.71,0.3191821]
[1730816729063,4.2489,164.75,164.71,0.3191821]
[1730816729064,14.13648301,164.72,164.71,0.3191821]
[1730816729236,14.13648301,164.73,164.71,0.3191821]
[1730816729439,20.12549,164.79,164.71,0.4191821]
[1730816729755,22.68212661,164.78,164.72,22.88212661]
[1730816729959,20.0,164.79,164.73,14.9727]
[1730816730139,22.5497,164.8,164.73,14.9727]
[1730816730140,15.963,164.8,164.74,0.2]
[1730816730455,4.2465,164.84,164.76,0.2]
[1730816730642,27.0056,164.85,164.77,0.2]
[1730816730830,22.7593,164.85,164.78,0.1]
[1730816731029,22.7593,164.85,164.78,0.2]
[1730816731266,22.68212661,164.84,164.78,22.88212661]
[1730816731640,22.68212661,164.86,164.8,22.88212661]
[1730816731843,22.68212661,164.86,164.81,0.1]
[1730816732055,22.68212661,164.86,164.81,4.3472]
[1730816732252,22.68212661,164.88,164.83,0.2]
[1730816732554,15.5822,164.89,164.81,10.6182]
[1730816732555,22.68212661,164.84,164.81,10.6182]
[1730816732933,22.68212661,164.85,164.8,4.3474]
[1730816733336,22.68212661,164.85,164.8,27.02952661]
[1730816733638,22.68212661,164.85,164.8,4.3474]
[1730816734243,22.68212661,164.88,164.82,22.68212661]
[1730816734457,22.68212661,164.88,164.8,14.9663]
[1730816734458,22.68212661,164.9,164.86,0.1]
[1730816734763,20.7512,164.93,164.84,0.1]
[1730816735056,70.0,164.92,164.8,10.6189]
[1730816735255,0.12549,164.87,164.78,0.1]
[1730816735635,20.12549,164.87,164.79,0.1]
[1730816735835,0.12549,164.86,164.79,0.1]
[1730816736263,22.68212661,164.82,164.79,0.1]
[1730816736634,22.68212661,164.83,164.8,0.1]
[1730816736837,22.68212661,164.84,164.8,0.2]
[1730816737032,22.68212661,164.83,164.8,0.2]
[1730816737539,29.09232661,164.88,164.85,0.1]
[1730816737540,22.68212661,164.88,164.85,0.1]
[1730816737763,22.68212661,164.89,164.85,0.1]
[1730816738070,22.68212661,164.89,164.87,0.1]
[1730816738477,22.68212661,164.9,164.87,0.1]
[1730816739341,22.68212661,164.93,164.88,0.1]
[1730816739549,22.68212661,164.93,164.89,0.1]
[1730816739758,22.68212661,164.91,164.89,0.1]
[1730816739966,22.68212661,164.91,164.88,0.2]
[1730816740153,22.68212661,164.89,164.87,10.7144]
[1730816740364,22.68212661,164.88,164.84,0.2]
[1730816740564,22.68212661,164.89,164.86,0.1]
[1730816740769,22.68212661,164.88,164.86,0.1]
[1730816740958,0.12549,164.94,164.84,4.4464]
[1730816740959,22.68212661,164.89,164.84,4.4464]
[1730816741157,22.68212661,164.88,164.86,0.1]
[1730816741346,22.68212661,164.87,164.84,10.7163]
[1730816741669,22.68212661,164.88,164.86,0.1]
[1730816742268,22.68212661,164.9,164.86,0.1]
[1730816742471,22.68212661,164.89,164.86,0.1]
[1730816742772,22.68212661,164.88,164.85,0.1]
[1730816742965,22.68212661,164.89,164.87,0.1]
[1730816743160,22.68212661,164.9,164.87,0.1]
[1730816743367,20.0,164.95,164.87,0.1]
[1730816743368,22.68212661,164.91,164.89,0.1]
[1730816743574,22.68212661,164.92,164.91,0.1]
[1730816744755,22.68212661,164.92,164.87,10.7139]
[1730816744955,22.68212661,164.9,164.87,14.9596]
[1730816745775,0.12549,164.92,164.85,0.1]
[1730816745776,22.68212661,164.89,164.88,0.1]
[1730816745979,22.68212661,164.9,164.88,0.1]
[1730816746976,22.68212661,164.89,164.88,0.1]
[1730816747775,22.68212661,164.89,164.86,14.8608]
[1730816747978,22.68212661,164.87,164.83,4.3465]
[1730816748271,22.68212661,164.86,164.84,0.1]
[1730816748465,22.68212661,164.87,164.84,0.1]
[1730816748799,22.68212661,164.88,164.86,0.1]
[1730816748954,22.68212661,164.89,164.86,0.1]
[1730816749160,22.68212661,164.88,164.86,0.1]
[1730816749577,22.68212661,164.89,164.86,0.1]
[1730816749877,22.68212661,164.9,164.87,4.3457]
[1730816750066,22.68212661,164.92,164.9,0.1]
[1730816750248,22.68212661,164.93,164.9,0.1]
[1730816750458,22.68212661,164.94,164.91,0.1]
[1730816750650,22.68212661,164.93,164.89,0.1]
[1730816750861,22.68212661,164.92,164.91,0.1]
[1730816751560,22.68212661,164.93,164.91,0.1]
[1730816751768,4.36889,164.96,164.91,0.1]
[1730816751971,22.68212661,164.93,164.91,0.1]
[1730816752276,22.68212661,164.94,164.91,0.1]
[1730816752578,22.68212661,164.94,164.91,10.6118]
[1730816753088,22.68212661,164.94,164.92,0.1]
[1730816753379,22.68212661,164.95,164.93,0.1]
[1730816753590,22.80761661,164.97,164.94,0.1]
[1730816753794,27.2439091,165.0,164.95,0.1]
[1730816753795,22.68212661,164.99,164.95,0.1]
[1730816754083,23.00130871,165.0,164.97,0.1]
[1730816754286,0.3191821,165.0,164.98,0.1]
[1730816754474,0.3191821,165.0,164.99,0.1]
[1730816754779,0.3191821,165.0,164.99,22.88212661]
[1730816755283,0.3191821,165.0,164.99,49.31212661]
[1730816755861,0.3191821,165.0,164.99,33.55472661]
[1730816756209,0.3191821,165.08,165.07,0.1]
[1730816756493,0.3191821,165.08,165.06,0.1]
[1730816756698,0.3191821,165.08,165.07,0.1]
[1730816756863,0.3191821,165.08,165.06,0.1]
[1730816757062,0.3191821,165.08,165.07,0.1]
[1730816758482,0.3191821,165.08,165.07,27.02272661]
[1730816758685,0.3191821,165.08,165.07,27.12272661]
[1730816759872,0.3191821,165.08,165.07,47.12272661]
[1730816760082,0.3191821,165.08,165.07,53.71752661]
[1730816760480,0.3191821,165.08,165.07,33.71752661]
[1730816760795,0.3191821,165.08,165.07,53.71752661]
[1730816762306,0.3191821,165.16,165.15,0.1]
[1730816762800,23.00130871,165.16,165.15,0.1]
[1730816763305,0.3191821,165.16,165.15,0.1]
[1730816763789,0.1028523,165.16,165.15,0.1]
[1730816764182,22.78497891,165.16,165.11,4.4393]
[1730816764392,22.68212661,165.15,165.11,0.2]
[1730816764608,22.68212661,165.15,165.13,0.1]
[1730816764910,0.2283423,165.16,165.14,0.1]
[1730816765378,0.2283423,165.16,165.15,0.1]
[1730816765581,0.1028523,165.16,165.15,0.1]
[1730816765902,22.78497891,165.16,165.13,0.1]
[1730816766109,22.78497891,165.16,165.14,0.1]
[1730816766281,0.1028523,165.16,165.14,0.1]
[1730816766482,0.1028523,165.16,165.15,0.1]
[1730816766690,0.1028523,165.16,165.14,0.1]
[1730816767002,22.78497891,165.16,165.13,10.6977]
[1730816767194,0.1028523,165.16,165.15,0.1]
[1730816767407,0.1028523,165.16,165.15,0.2]
[1730816767785,0.1028523,165.16,165.15,22.88212661]
[1730816767986,0.1028523,165.16,165.15,27.12062661]
[1730816768297,0.1028523,165.16,165.15,4.4385]
[1730816770513,0.1028523,165.16,165.15,27.12062661]
[1730816771352,0.1028523,165.16,165.15,47.12062661]
[1730816771484,0.1028523,165.16,165.15,77.16231061]
[1730816771682,0.1028523,165.16,165.15,77.26231061]
[1730816771905,0.1028523,165.16,165.15,77.16231061]
[1730816772112,0.1028523,165.16,165.15,53.38542661]
[1730816772409,0.1028523,165.16,165.15,4.4385]
[1730816772912,0.1028523,165.16,165.15,27.12062661]
[1730816773200,0.1028523,165.16,165.15,4.4385]
[1730816773991,0.1028523,165.16,165.15,27.12062661]
[1730816774311,0.1028523,165.16,165.15,50.89751061]
[1730816774607,0.1028523,165.16,165.15,27.12062661]
[1730816774809,0.1028523,165.16,165.15,0.2]
[1730816775210,0.1028523,165.16,165.15,4.4385]
[1730816778012,0.1028523,165.16,165.15,0.2]
[1730816778216,0.1028523,165.16,165.15,4.4385]
[1730816779124,0.1028523,165.16,165.15,0.1]
[1730816779125,18.56232142,165.16,165.15,0.1]
[1730816779322,14.19853142,165.16,165.15,0.1]
[1730816779515,0.1028523,165.16,165.15,0.1]
[1730816779731,0.2283423,165.16,165.15,0.1]
[1730816780039,0.1028523,165.16,165.15,0.1]
[1730816780608,0.1028523,165.16,165.13,0.2]
[1730816780924,0.1028523,165.16,165.15,0.1]
[1730816781326,14.19853142,165.16,165.13,0.1]
[1730816781637,14.19853142,165.16,165.15,0.1]
[1730816781805,14.19853142,165.16,165.13,0.1]
[1730816782009,14.22116912,165.15,165.14,0.1]
[1730816782709,0.12549,165.15,165.14,0.1]
[1730816783043,0.1028523,165.16,165.15,0.1]
[1730816784127,18.56232142,165.16,165.15,0.1]
[1730816784504,0.1028523,165.16,165.15,0.1]
[1730816785032,0.1028523,165.16,165.15,18.53417912]
[1730816785412,0.1028523,165.16,165.15,62.41106312]
[1730816785731,0.1028523,165.16,165.15,62.31106312]
[1730816785910,0.1028523,165.16,165.15,62.41106312]
[1730816786111,0.1028523,165.16,165.15,38.53417912]
[1730816786325,0.1028523,165.16,165.15,0.2]
[1730816786636,0.1028523,165.16,165.15,0.1]
[1730816786827,0.1028523,165.16,165.15,0.2]
[1730816787014,0.1028523,165.16,165.15,0.1]
[1730816787214,0.1028523,165.16,165.15,0.2]
[1730816787428,0.1028523,165.16,165.15,4.4385]
[1730816787731,0.1028523,165.16,165.15,18.53417912]
[1730816787910,18.43683142,165.16,165.13,0.1]
[1730816788235,0.2283423,165.16,165.14,0.1]
[1730816788535,0.2283423,165.16,165.15,0.1]
[1730816788739,0.2283423,165.16,165.14,0.1]
[1730816789110,0.2283423,165.16,165.13,0.1]
[1730816789111,14.32402142,165.16,165.13,0.1]
[1730816789309,22.66895223,165.16,165.12,0.2]
[1730816789627,22.66895223,165.16,165.1,0.1]
[1730816789628,22.69158993,165.15,165.1,0.1]
[1730816789938,0.12549,165.13,165.1,0.1]
[1730816790125,0.12549,165.13,165.08,0.1]
[1730816790325,22.56609993,165.11,165.07,0.1]
[1730816790634,22.69158993,165.1,165.09,0.1]
[1730816790844,0.12549,165.1,165.09,0.1]
[1730816791420,26.93148993,165.1,165.08,0.1]
[1730816791633,22.69158993,165.1,165.05,4.441]
[1730816791839,22.56609993,165.1,165.06,0.1]
[1730816792141,22.56609993,165.08,165.06,0.2]
[1730816792436,22.69158993,165.09,165.06,0.2]
[1730816792614,0.12549,165.09,165.07,0.1]
[1730816793419,22.69158993,165.09,165.07,0.1]
[1730816793736,0.12549,165.09,165.07,0.1]
[1730816793936,0.12549,165.14,165.08,0.2]
[1730816793937,22.56609993,165.11,165.08,0.2]
[1730816794120,22.66895223,165.11,165.08,0.2]
[1730816794915,22.56609993,165.1,165.08,0.2]
[1730816795116,22.56609993,165.09,165.05,0.2]
[1730816795317,22.56609993,165.09,165.04,10.6034]
[1730816795318,22.69158993,165.07,165.06,0.1]
[1730816795730,0.12549,165.07,165.06,0.1]
[1730816796135,22.69158993,165.07,165.03,0.1]
[1730816796356,22.56609993,165.06,165.04,0.1]
[1730816796520,22.69158993,165.07,165.06,0.1]
[1730816797138,22.69158993,165.07,165.04,0.1]
[1730816797443,22.69158993,165.07,165.06,0.1]
[1730816797853,22.56609993,165.08,165.06,0.1]
[1730816798026,0.12549,165.09,165.06,0.2]
[1730816798232,26.91085223,165.11,165.08,0.1]
[1730816798527,22.79444223,165.11,165.1,0.1]
[1730816799050,22.79444223,165.11,165.08,0.1]
[1730816799245,22.66895223,165.11,165.1,0.1]
[1730816799547,0.1028523,165.11,165.1,0.1]
[1730816799844,22.66895223,165.11,165.1,0.1]
[1730816800046,22.66895223,165.11,165.08,0.2]
[1730816800351,0.12549,165.08,165.04,0.2]
[1730816800544,22.56609993,165.06,165.04,0.2]
[1730816800844,22.56609993,165.06,165.04,0.1]
[1730816801050,22.56609993,165.05,165.03,0.1]
[1730816801439,22.56609993,165.07,165.06,0.1]
[1730816801643,22.56609993,165.09,165.07,0.2]
[1730816802355,4.3426523,165.11,165.08,0.1]
[1730816802356,22.56609993,165.1,165.08,0.1]
[1730816802527,22.56609993,165.09,165.08,0.1]
[1730816802939,22.56609993,165.09,165.07,0.1]
[1730816803136,22.56609993,165.09,165.07,0.2]
[1730816803623,4.36539,165.1,165.07,0.2]
[1730816804037,22.56609993,165.09,165.07,0.1]
[1730816804337,22.56609993,165.09,165.07,0.2]
[1730816804543,22.56609993,165.09,165.07,0.1]
[1730816805052,0.1028523,165.11,165.1,0.2]
[1730816805359,0.1028523,165.11,165.1,4.4398]
[1730816806753,0.1028523,165.11,165.1,0.1]
[1730816807255,0.1028523,165.11,165.1,0.2]
[1730816808432,0.1028523,165.11,165.1,4.4398]
[1730816809338,0.1028523,165.11,165.1,18.54280767]
[1730816809855,0.1028523,165.11,165.1,62.31969167]
[1730816810950,0.1028523,165.11,165.1,38.54280767]
[1730816811534,0.1028523,165.11,165.1,18.54280767]
[1730816812936,0.1028523,165.11,165.1,0.2]
[1730816813633,0.1028523,165.11,165.1,14.30300767]
[1730816813834,0.1028523,165.11,165.1,18.54280767]
[1730816816863,0.1028523,165.11,165.1,38.54280767]
[1730816817172,0.1028523,165.11,165.1,62.31969167]
[1730816817355,0.1028523,165.11,165.1,78.58979167]
[1730816817539,0.1028523,165.11,165.1,78.68979167]
[1730816818045,0.1028523,165.11,165.1,78.78979167]
[1730816818251,0.1028523,165.11,165.1,92.89279934]
[1730816818445,0.1028523,165.11,165.1,78.78979167]
[1730816818858,0.1028523,165.11,165.1,79.04077167]
[1730816819360,0.323528,165.19,165.18,0.2]
[1730816820030,0.323528,165.19,165.18,4.4378]
[1730816820234,0.323528,165.19,165.18,0.2]
[1730816821251,14.42653567,165.19,165.18,0.1]
[1730816821465,14.42653567,165.19,165.18,0.2]
[1730816821636,14.42653567,165.19,165.18,0.1]
[1730816822036,0.12549,165.18,165.14,0.2]
[1730816822259,14.10300767,165.17,165.15,0.1]
[1730816822463,14.22849767,165.18,165.15,0.1]
[1730816822673,0.12549,165.18,165.16,0.1]
[1730816823039,0.323528,165.19,165.18,0.1]
[1730816823242,14.42653567,165.19,165.16,0.2]
[1730816823446,14.10300767,165.18,165.17,0.1]
[1730816823646,14.10300767,165.18,165.16,0.2]
[1730816824163,14.10300767,165.18,165.17,0.1]
[1730816824364,18.66413567,165.19,165.17,0.1]
[1730816824563,14.10300767,165.18,165.16,0.1]
[1730816824767,14.10300767,165.18,165.16,0.2]
[1730816824945,14.10300767,165.18,165.17,0.1]
[1730816825458,14.38144757,165.18,165.17,0.1]
[1730816825942,14.38144757,165.18,165.16,0.1]
[1730816825943,14.38144757,165.18,165.16,0.2]
[1730816826449,14.38144757,165.18,165.17,0.1]
[1730816827161,0.12549,165.17,165.13,0.1]
[1730816827471,0.2784399,165.18,165.17,0.1]
[1730816827650,0.2784399,165.18,165.17,14.30300767]
[1730816828044,0.2784399,165.18,165.17,0.2]
[1730816829146,0.2784399,165.18,165.17,4.438]
[1730816829468,0.2784399,165.18,165.17,18.54100767]
[1730816829778,0.2784399,165.18,165.17,4.438]
[1730816830145,0.2784399,165.18,165.17,18.54100767]
[1730816830572,0.2784399,165.18,165.17,4.438]
[1730816830740,0.2784399,165.18,165.17,0.2]
[1730816831063,0.2784399,165.18,165.17,4.438]
[1730816833359,0.2784399,165.18,165.17,18.54100767]
[1730816833579,0.2784399,165.18,165.17,4.438]
[1730816833944,0.2784399,165.18,165.17,0.2]
[1730816834346,0.2784399,165.18,165.16,0.2]
[1730816834679,0.2784399,165.18,165.17,0.2]
[1730816834846,0.2784399,165.18,165.17,0.1]
[1730816836070,0.2784399,165.18,165.17,0.2]
[1730816836459,0.2784399,165.18,165.17,4.438]
[1730816836861,0.2784399,165.18,165.17,4.338]
[1730816837164,0.2784399,165.18,165.17,4.438]
[1730816837363,0.2784399,165.18,165.16,0.2]
[1730816837567,0.2784399,165.18,165.17,0.1]
[1730816839278,0.2784399,165.18,165.17,0.2]
[1730816841068,0.2784399,165.18,165.17,4.438]
[1730816841381,0.2784399,165.18,165.17,0.2]
[1730816842072,14.38144757,165.18,165.15,0.2]
[1730816842273,14.10300767,165.17,165.16,0.1]
[1730816842453,14.10300767,165.17,165.15,0.1]
[1730816842653,14.10300767,165.16,165.15,0.1]
[1730816842872,0.12549,165.17,165.15,0.2]
[1730816843070,0.12549,165.17,165.16,0.1]
[1730816843451,0.2784399,165.18,165.17,0.2]
[1730816845381,0.2784399,165.18,165.17,4.438]
[1730816846399,0.2784399,165.18,165.17,18.54100767]
[1730816846580,0.2784399,165.18,165.17,38.54100767]
[1730816847259,0.2784399,165.18,165.17,44.93250767]
[1730816847459,0.2784399,165.18,165.17,68.80939167]
[1730816848281,0.3182807,165.26,165.25,0.2]
[1730816849273,0.3182807,165.26,165.25,4.436]
[1730816849579,0.3182807,165.26,165.25,18.53900767]
[1730816849756,0.3182807,165.26,165.25,0.2]
[1730816850079,0.12549,165.25,165.24,0.1]
[1730816850288,0.12549,165.25,165.23,0.2]
[1730816850490,0.12549,165.25,165.23,0.1]
[1730816850790,14.10300767,165.24,165.21,0.2]
[1730816850995,14.22849767,165.23,165.22,0.1]
[1730816851164,0.12549,165.23,165.22,0.1]
[1730816851485,14.22849767,165.23,165.22,0.1]
[1730816851688,14.10300767,165.24,165.22,0.2]
[1730816851894,14.10300767,165.24,165.22,0.1]
[1730816852191,14.22849767,165.24,165.22,0.1]
[1730816852366,0.3182807,165.26,165.25,0.1]
[1730816852561,14.42128837,165.26,165.21,0.2]
[1730816852768,14.22849767,165.24,165.23,0.1]
[1730816853178,14.22849767,165.24,165.22,0.1]
[1730816853481,0.12549,165.24,165.23,0.1]
[1730816853993,4.5540807,165.26,165.23,0.2]
[1730816854288,0.3182807,165.26,165.25,0.1]
[1730816854887,14.42128837,165.26,165.25,0.1]
[1730816855484,14.42128837,165.26,165.24,0.2]
[1730816855694,0.3182807,165.26,165.25,0.1]
[1730816855888,0.3182807,165.26,165.25,0.2]
[1730816857069,0.3182807,165.26,165.25,4.436]
[1730816857391,0.3182807,165.26,165.25,0.2]
[1730816857563,0.3182807,165.26,165.25,4.436]
[1730816858207,0.3182807,165.26,165.25,0.2]
[1730816858507,0.3182807,165.26,165.25,4.436]
[1730816859606,0.3182807,165.26,165.25,0.2]
[1730816860786,0.3182807,165.26,165.25,18.53900767]
[1730816861279,0.3182807,165.26,165.25,4.436]
[1730816861783,0.3182807,165.26,165.25,18.53900767]
[1730816862784,0.3182807,165.26,165.25,4.436]
[1730816863103,0.3182807,165.26,165.25,18.53900767]
[1730816864986,0.3182807,165.26,165.25,42.31589167]
[1730816865783,0.3182807,165.26,165.25,18.53900767]
[1730816865997,0.3182807,165.26,165.25,38.53900767]
[1730816866309,0.3182807,165.26,165.25,62.31589167]
[1730816866499,0.3182807,165.34,165.33,22.7069]
[1730816866807,0.3182807,165.43,165.42,0.2]
[1730816867207,0.3182807,165.43,165.4,0.2]
[1730816867404,14.42128837,165.43,165.42,0.1]
[1730816867611,0.3182807,165.43,165.42,0.2]
[1730816867917,0.3182807,165.43,165.42,34.30300767]
[1730816868082,0.3182807,165.43,165.42,14.30300767]
[1730816869211,0.3182807,165.43,165.42,18.53460767]
[1730816869511,0.3182807,165.43,165.42,0.2]
[1730816870392,0.3182807,165.43,165.42,14.30300767]
[1730816871814,0.3182807,165.43,165.42,0.2]
[1730816873013,0.3182807,165.43,165.42,14.30300767]
[1730816873498,0.3182807,165.43,165.42,0.2]
[1730816874103,14.42128837,165.43,165.42,0.1]
[1730816874807,0.12549,165.42,165.4,0.1]
[1730816874990,14.22849767,165.41,165.4,0.1]
[1730816875917,0.12549,165.41,165.4,0.1]
[1730816876090,14.22849767,165.41,165.4,0.1]
[1730816876488,14.22849767,165.41,165.39,0.1]
[1730816876822,18.46039767,165.41,165.39,0.1]
[1730816877022,18.46039767,165.41,165.4,0.1]
[1730816877318,0.3182807,165.43,165.4,0.1]
[1730816877496,14.10300767,165.41,165.4,0.1]
[1730816877698,14.10300767,165.41,165.4,0.2]
[1730816877897,14.10300767,165.42,165.41,0.1]
[1730816878710,14.10300767,165.42,165.41,0.2]
[1730816879618,14.10300767,165.42,165.34,10.5836]
[1730816879619,0.3182807,165.43,165.42,0.2]
[1730816881615,0.3182807,165.43,165.42,4.4316]
[1730816881820,0.3182807,165.43,165.42,18.53460767]
[1730816882627,0.3182807,165.43,165.42,0.2]
[1730816882835,18.65258837,165.43,165.42,0.1]
[1730816883007,18.65258837,165.43,165.36,10.5827]
[1730816883008,18.77807837,165.43,165.4,0.1]
[1730816883211,14.10300767,165.41,165.4,0.2]
[1730816883608,0.3182807,165.43,165.42,0.2]
[1730816888042,0.12549,165.42,165.4,0.2]
[1730816888231,14.10300767,165.41,165.4,0.2]
[1730816888537,0.3182807,165.43,165.42,0.1]
[1730816888743,0.3182807,165.43,165.42,0.2]
[1730816888917,18.77807837,165.43,165.41,0.1]
[1730816889123,14.22849767,165.42,165.41,0.1]
[1730816889323,18.58558767,165.42,165.4,0.1]
[1730816889521,14.22849767,165.41,165.4,0.1]
[1730816889741,0.12549,165.41,165.4,0.1]
[1730816889940,18.33460767,165.42,165.41,0.1]
[1730816890146,4.2316,165.42,165.4,0.1]
[1730816890444,18.33460767,165.42,165.4,0.1]
[1730816890635,14.10300767,165.41,165.4,0.1]
[1730816890824,18.33460767,165.42,165.4,0.1]
[1730816891021,14.22849767,165.41,165.4,0.1]
[1730816891347,14.10300767,165.42,165.4,0.2]
[1730816891847,18.33460767,165.42,165.4,0.1]
[1730816892049,18.33460767,165.42,165.4,0.2]
[1730816892220,14.10300767,165.42,165.41,0.1]